fUST/lending_fUST_20241022
["ID","MTS","AMOUNT","RATE_DAILY","PERIOD"]
[340628878,1729557034967,-151.0,0.00016438,2]
[340628879,1729557034977,-500.0,0.00016438,2]
[340628880,1729557034987,-500.0,0.00016438,2]
[340628881,1729557034998,-1808.75,0.00016438,2]
[340628882,1729557035018,-151.0,0.00016438,2]
[340628883,1729557035028,-151.0,0.00016438,2]
[340628884,1729557035038,-151.0,0.00016438,2]
[340628885,1729557035050,-500.0,0.00016438,2]
[340628886,1729557035061,-500.0,0.00016438,2]
[340628887,1729557035070,-1299.04,0.00016438,2]
[340628888,1729557035080,-533.27,0.00016438,2]
[340628889,1729557035090,-911.17,0.00016438,2]
[340628890,1729557035099,-659.33,0.00016438,2]
[340628891,1729557035109,-500.0,0.00016438,2]
[340628892,1729557035120,-1462.68,0.00016438,2]
[340628893,1729557035130,-681.81,0.00016438,2]
[340628894,1729557035140,-1017.96,0.00016438,2]
[340628895,1729557035149,-151.0,0.00016438,2]
[340628896,1729557035159,-151.0,0.00016438,2]
[340628897,1729557035168,-151.0,0.00016438,2]
[340628898,1729557035179,-220.828188,0.00016438,2]
[340628899,1729557035188,-151.0,0.00016438,2]
[340628900,1729557035199,-151.0,0.00016438,2]
[340628901,1729557035209,-500.0,0.00016438,2]
[340628902,1729557035220,-500.0,0.00016438,2]
[340628903,1729557035229,-500.0,0.00016438,2]
[340628904,1729557035239,-500.0,0.00016438,2]
[340628905,1729557035249,-1431.52,0.00016438,2]
[340628906,1729557035273,-500.0,0.00016438,2]
[340628907,1729557035284,-865.04,0.00016438,2]
[340628908,1729557035294,-983.78,0.00016438,2]
[340628909,1729557035304,-952.76,0.00016438,2]
[340628910,1729557035313,-151.0,0.00016438,2]
[340628911,1729557035323,-500.0,0.00016438,2]
[340628912,1729557035333,-151.0,0.00016438,2]
[340628913,1729557035343,-242.119066,0.00016438,2]
[340628914,1729557035353,-500.0,0.00016438,2]
[340628915,1729557035363,-924.38,0.00016438,2]
[340628916,1729557035373,-151.0,0.00016438,2]
[340628917,1729557035383,-151.0,0.00016438,2]
[340628918,1729557035393,-661.56,0.00016438,2]
[340628919,1729557035403,-151.0,0.00016438,2]
[340628920,1729557035412,-500.0,0.00016438,2]
[340628921,1729557035422,-500.0,0.00016438,2]
[340628922,1729557035432,-151.0,0.00016438,2]
[340628923,1729557035443,-151.0,0.00016438,2]
[340628924,1729557035456,-151.0,0.00016438,2]
[340628925,1729557035467,-974.38,0.00016438,2]
[340628926,1729557035479,-798.26,0.00016438,2]
[340628927,1729557035491,-500.0,0.00016438,2]
[340628928,1729557035503,-820.74,0.00016438,2]
[340628929,1729557035517,-151.0,0.00016438,2]
[340628930,1729557035529,-500.0,0.00016438,2]
[340628931,1729557035539,-151.0,0.00016438,2]
[340628932,1729557035549,-151.0,0.00016438,2]
[340628933,1729557035560,-500.0,0.00016438,2]
[340628934,1729557035570,-500.0,0.00016438,2]
[340628935,1729557035579,-500.0,0.00016438,2]
[340628936,1729557035589,-151.0,0.00016438,2]
[340628937,1729557035599,-283.999942,0.00016438,2]
[340628938,1729557035610,-500.0,0.00016438,2]
[340628939,1729557035620,-500.0,0.00016438,2]
[340628940,1729557035630,-729.16,0.00016438,2]
[340628941,1729557035640,-774.23,0.00016438,2]
[340628942,1729557035650,-559.5,0.00016438,2]
[340628943,1729557035660,-701.57,0.00016438,2]
[340628944,1729557035670,-825.68,0.00016438,2]
[340628945,1729557035680,-500.0,0.00016438,2]
[340628946,1729557035689,-500.0,0.00016438,2]
[340628947,1729557035700,-923.81,0.00016438,2]
[340628948,1729557035710,-500.0,0.00016438,2]
[340628949,1729557035719,-500.0,0.00016438,2]
[340628950,1729557035729,-500.0,0.00016438,2]
[340628951,1729557035739,-696.57,0.00016438,2]
[340628952,1729557035748,-500.0,0.00016438,2]
[340628953,1729557035765,-151.0,0.00016438,2]
[340628954,1729557035774,-500.0,0.00016438,2]
[340628955,1729557035784,-1524.89,0.00016438,2]
[340628956,1729557035793,-151.0,0.00016438,2]
[340628957,1729557035803,-151.0,0.00016438,2]
[340628958,1729557035812,-151.0,0.00016438,2]
[340628959,1729557035821,-500.0,0.00016438,2]
[340628960,1729557035830,-1690.95,0.00016438,2]
[340628961,1729557035839,-421.23456013,0.00016438,2]
[340628962,1729557035849,-151.0,0.00016438,2]
[340628963,1729557035859,-151.0,0.00016438,2]
[340628964,1729557035868,-151.0,0.00016438,2]
[340628965,1729557035878,-1980.93,0.00016438,2]
[340628966,1729557035889,-567.18167828,0.00016438,2]
[340628967,1729557035899,-859.68,0.00016438,2]
[340628968,1729557035908,-541.3,0.00016438,2]
[340628969,1729557035918,-500.0,0.00016438,2]
[340628970,1729557035928,-500.0,0.00016438,2]
[340628971,1729557035939,-852.55,0.00016438,2]
[340628972,1729557035949,-661.9,0.00016438,2]
[340628973,1729557035959,-500.0,0.00016438,2]
[340628974,1729557035968,-500.0,0.00016438,2]
[340628975,1729557035977,-500.0,0.00016438,2]
[340628976,1729557035988,-500.0,0.00016438,2]
[340628977,1729557035997,-679.83,0.00016438,2]
[340628978,1729557036012,-500.0,0.00016438,2]
[340628979,1729557036022,-1376.19,0.00016438,2]
[340628980,1729557036032,-500.0,0.00016438,2]
[340628981,1729557036041,-151.0,0.00016438,2]
[340628982,1729557036051,-151.0,0.00016438,2]
[340628983,1729557036062,-1079.85,0.00016438,2]
[340628984,1729557036072,-500.0,0.00016438,2]
[340628985,1729557036082,-2344.31,0.00016438,2]
[340628986,1729557036091,-764.7,0.00016438,2]
[340628987,1729557036100,-632.11,0.00016438,2]
[340628988,1729557036110,-7077.83,0.00016438,2]
[340628989,1729557036119,-500.0,0.00016438,2]
[340628990,1729557036128,-500.0,0.00016438,2]
[340628991,1729557036138,-500.0,0.00016438,2]
[340628992,1729557036148,-1037.86,0.00016438,2]
[340628993,1729557036159,-950.19,0.00016438,2]
[340628994,1729557036168,-557.84,0.00016438,2]
[340628995,1729557036178,-254.700884,0.00016438,2]
[340628996,1729557036188,-1151.05,0.00016438,2]
[340628997,1729557036197,-500.0,0.00016438,2]
[340628998,1729557036207,-626.56,0.00016438,2]
[340628999,1729557036217,-942.03,0.00016438,2]
[340629000,1729557036227,-562.49,0.00016438,2]
[340629001,1729557036236,-915.29,0.00016438,2]
[340629002,1729557036246,-500.0,0.00016438,2]
[340629003,1729557036262,-500.0,0.00016438,2]
[340629004,1729557036272,-2355.26,0.00016438,2]
[340629005,1729557036282,-151.0,0.00016438,2]
[340629006,1729557036292,-261.723976,0.00016438,2]
[340629007,1729557036301,-526.85,0.00016438,2]
[340629008,1729557036311,-500.0,0.00016438,2]
[340629009,1729557036321,-500.0,0.00016438,2]
[340629010,1729557036331,-971.86,0.00016438,2]
[340629011,1729557036340,-889.06,0.00016438,2]
[340629012,1729557036350,-500.0,0.00016438,2]
[340629013,1729557036360,-631.9,0.00016438,2]
[340629014,1729557036369,-860.31,0.00016438,2]
[340629015,1729557036378,-500.0,0.00016438,2]
[340629016,1729557036388,-3884.41,0.00016438,2]
[340629017,1729557036398,-500.0,0.00016438,2]
[340629018,1729557036408,-764.99,0.00016438,2]
[340629019,1729557036460,-500.0,0.00016438,2]
[340629020,1729557036473,-1036.12,0.00016438,2]
[340629021,1729557036483,-756.88,0.00016438,2]
[340629022,1729557036492,-813.73,0.00016438,2]
[340629023,1729557036506,-665.85,0.00016438,2]
[340629024,1729557036516,-701.5,0.00016438,2]
[340629025,1729557036525,-829.88,0.00016438,2]
[340629026,1729557036535,-1278.81,0.00016438,2]
[340629027,1729557036546,-500.0,0.00016438,2]
[340629028,1729557036555,-625.79,0.00016438,2]
[340629029,1729557036565,-667.69,0.00016438,2]
[340629030,1729557036574,-500.0,0.00016438,2]
[340629031,1729557036584,-244.792248,0.00016438,2]
[340629032,1729557036594,-1507.08,0.00016438,2]
[340629033,1729557036603,-9330.62,0.00016438,2]
[340629034,1729557036614,-500.0,0.00016438,2]
[340629035,1729557036624,-151.0,0.00016438,2]
[340629036,1729557036634,-736.3,0.00016438,2]
[340629037,1729557036643,-500.0,0.00016438,2]
[340629038,1729557036653,-583.29,0.00016438,2]
[340629039,1729557036662,-523.47586706,0.00016473,2]
[340629040,1729557036672,-150.0,0.00016561,2]
[340629041,1729557036681,-527.0,0.00016561,2]
[340629042,1729557036691,-1804.0,0.00016561,2]
[340629043,1729557036701,-1152.0,0.00016561,2]
[340629044,1729557036711,-184.128536,0.00016566,2]
[340629045,1729557036720,-4128.4616082,0.00016625,2]
[340629046,1729557036729,-197.954297,0.00016648,2]
[340629047,1729557036739,-264.542389,0.000167,2]
[340629048,1729557036749,-151.0,0.00016702,2]
[340629049,1729557036765,-405.9820096,0.00016702,2]
[340629050,1729557036774,-246.01915369,0.00016711,2]
[340629051,1729557036783,-500.0,0.00016712,2]
[340629052,1729557036793,-588.85,0.00016712,2]
[340629053,1729557036803,-832.09,0.00016712,2]
[340629054,1729557036812,-500.0,0.00016712,2]
[340629055,1729557036822,-500.0,0.00016712,2]
[340629056,1729557036833,-712.87,0.00016712,2]
[340629057,1729557036843,-587.59,0.00016712,2]
[340629058,1729557036852,-500.0,0.00016712,2]
[340629059,1729557036862,-500.0,0.00016712,2]
[340629060,1729557036871,-500.0,0.00016712,2]
[340629061,1729557036880,-500.0,0.00016712,2]
[340629062,1729557036890,-651.84,0.00016712,2]
[340629063,1729557036900,-500.0,0.00016712,2]
[340629064,1729557036909,-500.0,0.00016712,2]
[340629065,1729557036919,-200.0,0.00016712,2]
[340629066,1729557036928,-500.0,0.00016712,2]
[340629067,1729557036937,-500.0,0.00016712,2]
[340629068,1729557036946,-500.0,0.00016712,2]
[340629069,1729557036956,-857.58,0.00016712,2]
[340629070,1729557036966,-500.0,0.00016712,2]
[340629071,1729557036975,-500.0,0.00016712,2]
[340629072,1729557036985,-500.0,0.00016712,2]
[340629073,1729557036994,-500.0,0.00016712,2]
[340629074,1729557037009,-728.27,0.00016712,2]
[340629075,1729557037018,-500.0,0.00016712,2]
[340629076,1729557037028,-500.0,0.00016712,2]
[340629077,1729557037037,-865.75,0.00016712,2]
[340629078,1729557037046,-500.0,0.00016712,2]
[340629079,1729557037057,-500.0,0.00016712,2]
[340629080,1729557037067,-500.0,0.00016712,2]
[340629081,1729557037077,-500.0,0.00016712,2]
[340629082,1729557037087,-510.77,0.00016712,2]
[340629083,1729557037096,-512.54,0.00016712,2]
[340629084,1729557037105,-500.0,0.00016712,2]
[340629085,1729557037115,-500.0,0.00016712,2]
[340629086,1729557037124,-500.0,0.00016712,2]
[340629087,1729557037134,-1187.23,0.00016712,2]
[340629088,1729557037144,-624.95,0.00016712,2]
[340629089,1729557037154,-500.0,0.00016712,2]
[340629090,1729557037163,-422.25953797,0.00016712,2]
[340629091,1729557037173,-500.0,0.00016712,2]
[340629092,1729557037182,-522.67,0.00016712,2]
[340629093,1729557037192,-688.87,0.00016712,2]
[340629094,1729557037202,-727.12,0.00016712,2]
[340629095,1729557037212,-500.0,0.00016712,2]
[340629096,1729557037221,-500.0,0.00016712,2]
[340629097,1729557037230,-500.0,0.00016712,2]
[340629098,1729557037240,-500.0,0.00016712,2]
[340629099,1729557037250,-500.0,0.00016712,2]
[340629100,1729557037266,-500.0,0.00016712,2]
[340629101,1729557037276,-500.0,0.00016712,2]
[340629102,1729557037285,-500.0,0.00016712,2]
[340629103,1729557037294,-1141.29,0.00016712,2]
[340629104,1729557037304,-934.92,0.00016712,2]
[340629105,1729557037313,-500.0,0.00016712,2]
[340629106,1729557037322,-500.0,0.00016712,2]
[340629107,1729557037331,-740.09,0.00016712,2]
[340629108,1729557037341,-500.0,0.00016712,2]
[340629109,1729557037351,-500.0,0.00016712,2]
[340629110,1729557037360,-843.65,0.00016712,2]
[340629111,1729557037369,-500.0,0.00016712,2]
[340629112,1729557037379,-500.0,0.00016712,2]
[340629113,1729557037388,-500.0,0.00016712,2]
[340629114,1729557037397,-500.0,0.00016712,2]
[340629115,1729557037407,-737.87,0.00016712,2]
[340629116,1729557037415,-606.68,0.00016712,2]
[340629117,1729557037425,-931.36,0.00016712,2]
[340629118,1729557037435,-500.0,0.00016712,2]
[340629119,1729557037445,-1035.33,0.00016712,2]
[340629120,1729557037454,-573.37,0.00016712,2]
[340629121,1729557037466,-757.94,0.00016712,2]
[340629122,1729557037476,-500.0,0.00016712,2]
[340629123,1729557037486,-500.0,0.00016712,2]
[340629124,1729557037495,-728.15,0.00016712,2]
[340629125,1729557037510,-500.0,0.00016712,2]
[340629126,1729557037520,-500.0,0.00016712,2]
[340629127,1729557037529,-500.0,0.00016712,2]
[340629128,1729557037538,-333.63926868,0.00016712,2]
[340629129,1729557037549,-881.93,0.00016712,2]
[340629130,1729557037559,-500.0,0.00016712,2]
[340629131,1729557037568,-575.14,0.00016712,2]
[340629132,1729557037578,-500.0,0.00016712,2]
[340629133,1729557037588,-1110.88,0.00016712,2]
[340629134,1729557037598,-822.24,0.00016712,2]
[340629135,1729557037607,-909.06,0.00016712,2]
[340629136,1729557037616,-569.43561955,0.00016712,2]
[340629137,1729557037626,-508.8,0.00016712,2]
[340629138,1729557037635,-514.56,0.00016712,2]
[340629139,1729557037645,-681.86,0.00016712,2]
[340629140,1729557037654,-832.16,0.00016712,2]
[340629141,1729557037664,-500.0,0.00016712,2]
[340629142,1729557037673,-500.0,0.00016712,2]
[340629143,1729557037683,-1618.7,0.00016712,2]
[340629144,1729557037692,-740.48,0.00016712,2]
[340629145,1729557037701,-686.19,0.00016712,2]
[340629146,1729557037710,-1000.0,0.00016712,2]
[340629147,1729557037720,-637.03,0.00016712,2]
[340629148,1729557037730,-833.71,0.00016712,2]
[340629149,1729557037739,-500.0,0.00016712,2]
[340629150,1729557037748,-500.0,0.00016712,2]
[340629151,1729557037760,-500.0,0.00016712,2]
[340629152,1729557037770,-1588.61,0.00016712,2]
[340629153,1729557037780,-500.0,0.00016712,2]
[340629154,1729557037789,-755.6,0.00016712,2]
[340629155,1729557037798,-500.0,0.00016712,2]
[340629156,1729557037809,-500.0,0.00016712,2]
[340629157,1729557037818,-596.0,0.00016712,2]
[340629158,1729557037827,-500.0,0.00016712,2]
[340629159,1729557037836,-509.4,0.00016712,2]
[340629160,1729557037845,-500.0,0.00016712,2]
[340629161,1729557037854,-1036.88,0.00016712,2]
[340629162,1729557037864,-500.0,0.00016712,2]
[340629163,1729557037873,-500.0,0.00016712,2]
[340629164,1729557037883,-664.88,0.00016712,2]
[340629165,1729557037892,-500.0,0.00016712,2]
[340629166,1729557037901,-559.19,0.00016712,2]
[340629167,1729557037911,-500.0,0.00016712,2]
[340629168,1729557037921,-699.79,0.00016712,2]
[340629169,1729557037930,-500.0,0.00016712,2]
[340629170,1729557037940,-500.0,0.00016712,2]
[340629171,1729557037949,-500.0,0.00016712,2]
[340629172,1729557037959,-524.5,0.00016712,2]
[340629173,1729557037968,-500.0,0.00016712,2]
[340629174,1729557037977,-500.0,0.00016712,2]
[340629175,1729557037987,-506.12,0.00016712,2]
[340629176,1729557037996,-500.0,0.00016712,2]
[340629177,1729557038007,-500.0,0.00016712,2]
[340629178,1729557038017,-609.19,0.00016712,2]
[340629179,1729557038026,-500.0,0.00016712,2]
[340629180,1729557038037,-1089.8,0.00016712,2]
[340629181,1729557038047,-328.82984968,0.00016712,2]
[340629182,1729557038057,-500.0,0.00016712,2]
[340629183,1729557038067,-506.9,0.00016712,2]
[340629184,1729557038076,-500.0,0.00016712,2]
[340629185,1729557038085,-701.91,0.00016712,2]
[340629186,1729557038095,-500.0,0.00016712,2]
[340629187,1729557038104,-500.0,0.00016712,2]
[340629188,1729557038114,-500.0,0.00016712,2]
[340629189,1729557038123,-500.0,0.00016712,2]
[340629190,1729557038134,-500.0,0.00016712,2]
[340629191,1729557038143,-680.94,0.00016712,2]
[340629192,1729557038153,-500.0,0.00016712,2]
[340629193,1729557038162,-657.26,0.00016712,2]
[340629194,1729557038172,-1270.64,0.00016712,2]
[340629195,1729557038181,-500.0,0.00016712,2]
[340629196,1729557038191,-21399.33,0.00016712,2]
[340629197,1729557038201,-173.24710294,0.00016712,2]
[340629198,1729557038226,-332.04289706,0.00016712,2]
[340629199,1729557038236,-154.5058653,0.00016712,2]
[340629213,1729557038617,158.30021871,0.0001477,2]
[340629218,1729557038977,-48.29434516,0.00016438,2]
[340629219,1729557039505,500.0,0.00013,2]
[340629228,1729557043013,-415.18700684,0.00016438,2]
[340629230,1729557043023,-316.35332116,0.00016438,2]
[340629231,1729557043122,-183.64667884,0.00016438,2]
[340629232,1729557043132,-486.47332116,0.00016438,2]
[340629251,1729557043779,-13.52667884,0.00016438,2]
[340629252,1729557043789,-500.0,0.00016438,2]
[340629253,1729557043799,-500.0,0.00016712,2]
[340629254,1729557043808,-151.0,0.00016712,2]
[340629255,1729557043818,-151.0,0.00016712,2]
[340629256,1729557043827,-500.0,0.00016712,2]
[340629257,1729557043837,-39.60285413,0.00016712,2]
[340629279,1729557046694,-500.0,0.00016438,2]
[340629280,1729557046704,-205.01596141,0.00016711,2]
[340629282,1729557046714,-111.39714587,0.00016712,2]
[340629284,1729557046725,-4280.2,0.00016712,2]
[340629286,1729557046734,-151.0,0.00016712,2]
[340629287,1729557046746,-649.67,0.00016712,2]
[340629288,1729557046758,-151.0,0.00016712,2]
[340629289,1729557046770,-151.0,0.00016712,2]
[340629290,1729557046779,-151.0,0.00016712,2]
[340629291,1729557046790,-151.0,0.00016712,2]
[340629292,1729557046800,-500.0,0.00016712,2]
[340629293,1729557046810,-1808.75,0.00016712,2]
[340629294,1729557046819,-151.0,0.00016712,2]
[340629295,1729557046829,-151.0,0.00016712,2]
[340629296,1729557046839,-151.0,0.00016712,2]
[340629297,1729557046848,-151.0,0.00016712,2]
[340629298,1729557046858,-500.0,0.00016712,2]
[340629299,1729557046868,-1299.04,0.00016712,2]
[340629300,1729557046877,-533.27,0.00016712,2]
[340629301,1729557046888,-911.17,0.00016712,2]
[340629302,1729557046898,-659.33,0.00016712,2]
[340629303,1729557046908,-500.0,0.00016712,2]
[340629304,1729557046918,-1462.68,0.00016712,2]
[340629305,1729557046928,-681.81,0.00016712,2]
[340629306,1729557046938,-1017.96,0.00016712,2]
[340629307,1729557046948,-151.0,0.00016712,2]
[340629308,1729557046958,-500.0,0.00016712,2]
[340629309,1729557046968,-500.0,0.00016712,2]
[340629310,1729557046978,-500.0,0.00016712,2]
[340629311,1729557046988,-1431.52,0.00016712,2]
[340629312,1729557046998,-500.0,0.00016712,2]
[340629313,1729557047009,-500.0,0.00016712,2]
[340629314,1729557047020,-865.04,0.00016712,2]
[340629315,1729557047030,-983.78,0.00016712,2]
[340629316,1729557047040,-952.76,0.00016712,2]
[340629317,1729557047050,-500.0,0.00016712,2]
[340629318,1729557047061,-924.38,0.00016712,2]
[340629319,1729557047072,-661.56,0.00016712,2]
[340629320,1729557047083,-500.0,0.00016712,2]
[340629321,1729557047092,-500.0,0.00016712,2]
[340629322,1729557047103,-974.38,0.00016712,2]
[340629323,1729557047113,-798.26,0.00016712,2]
[340629324,1729557047122,-500.0,0.00016712,2]
[340629325,1729557047132,-820.74,0.00016712,2]
[340629326,1729557047142,-500.0,0.00016712,2]
[340629327,1729557047152,-151.0,0.00016712,2]
[340629328,1729557047162,-151.0,0.00016712,2]
[340629329,1729557047172,-151.0,0.00016712,2]
[340629330,1729557047182,-500.0,0.00016712,2]
[340629331,1729557047193,-151.0,0.00016712,2]
[340629332,1729557047202,-500.0,0.00016712,2]
[340629333,1729557047212,-500.0,0.00016712,2]
[340629334,1729557047222,-500.0,0.00016712,2]
[340629335,1729557047232,-729.16,0.00016712,2]
[340629336,1729557047243,-774.23,0.00016712,2]
[340629337,1729557047253,-559.5,0.00016712,2]
[340629338,1729557047269,-701.57,0.00016712,2]
[340629339,1729557047279,-825.68,0.00016712,2]
[340629340,1729557047289,-500.0,0.00016712,2]
[340629341,1729557047299,-500.0,0.00016712,2]
[340629342,1729557047309,-923.81,0.00016712,2]
[340629343,1729557047319,-500.0,0.00016712,2]
[340629344,1729557047329,-500.0,0.00016712,2]
[340629345,1729557047338,-500.0,0.00016712,2]
[340629346,1729557047349,-696.57,0.00016712,2]
[340629347,1729557047359,-500.0,0.00016712,2]
[340629348,1729557047369,-500.0,0.00016712,2]
[340629349,1729557047378,-1524.89,0.00016712,2]
[340629350,1729557047388,-220.142847,0.00016712,2]
[340629351,1729557047398,-500.0,0.00016712,2]
[340629352,1729557047408,-1690.95,0.00016712,2]
[340629353,1729557047419,-206.50379,0.00016712,2]
[340629354,1729557047429,-1980.93,0.00016712,2]
[340629355,1729557047440,-859.68,0.00016712,2]
[340629356,1729557047450,-541.3,0.00016712,2]
[340629357,1729557047461,-500.0,0.00016712,2]
[340629358,1729557047471,-500.0,0.00016712,2]
[340629359,1729557047481,-852.55,0.00016712,2]
[340629360,1729557047493,-661.9,0.00016712,2]
[340629361,1729557047505,-500.0,0.00016712,2]
[340629362,1729557047521,-500.0,0.00016712,2]
[340629363,1729557047530,-500.0,0.00016712,2]
[340629364,1729557047542,-300.44526243,0.00016712,2]
[340629365,1729557047552,-679.83,0.00016712,2]
[340629366,1729557047562,-200.0,0.00016712,2]
[340629367,1729557047573,-500.0,0.00016712,2]
[340629368,1729557047583,-1376.19,0.00016712,2]
[340629369,1729557047594,-151.0,0.00016712,2]
[340629370,1729557047603,-1079.85,0.00016712,2]
[340629371,1729557047614,-500.0,0.00016712,2]
[340629372,1729557047624,-2344.31,0.00016712,2]
[340629373,1729557047634,-764.7,0.00016712,2]
[340629374,1729557047644,-632.11,0.00016712,2]
[340629375,1729557047654,-7077.83,0.00016712,2]
[340629376,1729557047664,-500.0,0.00016712,2]
[340629377,1729557047675,-1037.86,0.00016712,2]
[340629378,1729557047685,-950.19,0.00016712,2]
[340629379,1729557047695,-557.84,0.00016712,2]
[340629380,1729557047705,-1151.05,0.00016712,2]
[340629381,1729557047715,-500.0,0.00016712,2]
[340629382,1729557047725,-626.56,0.00016712,2]
[340629383,1729557047736,-942.03,0.00016712,2]
[340629384,1729557047745,-562.49,0.00016712,2]
[340629385,1729557047759,-915.29,0.00016712,2]
[340629386,1729557047770,-500.0,0.00016712,2]
[340629387,1729557047779,-2355.26,0.00016712,2]
[340629388,1729557047790,-526.85,0.00016712,2]
[340629389,1729557047799,-500.0,0.00016712,2]
[340629390,1729557047809,-971.86,0.00016712,2]
[340629391,1729557047819,-889.06,0.00016712,2]
[340629392,1729557047830,-631.9,0.00016712,2]
[340629393,1729557047840,-860.31,0.00016712,2]
[340629394,1729557047851,-3884.41,0.00016712,2]
[340629395,1729557047863,-500.0,0.00016712,2]
[340629396,1729557047873,-764.99,0.00016712,2]
[340629397,1729557047883,-1036.12,0.00016712,2]
[340629398,1729557047893,-756.88,0.00016712,2]
[340629399,1729557047903,-813.73,0.00016712,2]
[340629400,1729557047913,-665.85,0.00016712,2]
[340629401,1729557047922,-701.5,0.00016712,2]
[340629402,1729557047932,-829.88,0.00016712,2]
[340629403,1729557047942,-1278.81,0.00016712,2]
[340629404,1729557047951,-500.0,0.00016712,2]
[340629405,1729557047961,-625.79,0.00016712,2]
[340629406,1729557047970,-667.69,0.00016712,2]
[340629407,1729557047980,-500.0,0.00016712,2]
[340629408,1729557047989,-1507.08,0.00016712,2]
[340629409,1729557048000,-9330.62,0.00016712,2]
[340629410,1729557048012,-500.0,0.00016712,2]
[340629411,1729557048022,-736.3,0.00016712,2]
[340629412,1729557048033,-500.0,0.00016712,2]
[340629413,1729557048043,-583.29,0.00016712,2]
[340629414,1729557048053,-500.0,0.00016712,2]
[340629415,1729557048065,-500.0,0.00016712,2]
[340629416,1729557048075,-500.0,0.00016712,2]
[340629417,1729557048085,-500.0,0.00016712,2]
[340629418,1729557048095,-300.76207523,0.00016773,2]
[340629419,1729557048106,-500.0,0.00016773,2]
[340629420,1729557048116,-500.19200105,0.00016773,2]
[340629421,1729557048126,-500.0,0.00016773,2]
[340629422,1729557048136,-500.0,0.00016773,2]
[340629423,1729557048146,-619.99121162,0.00016773,2]
[340629424,1729557048156,-500.0,0.00016773,2]
[340629425,1729557048168,-500.62987259,0.00016773,2]
[340629426,1729557048177,-501.70662504,0.00016773,2]
[340629427,1729557048187,-500.0,0.00016773,2]
[340629428,1729557048198,-500.0,0.00016773,2]
[340629429,1729557048207,-500.0,0.00016773,2]
[340629430,1729557048217,-500.0,0.00016773,2]
[340629431,1729557048227,-500.0,0.00016773,2]
[340629432,1729557048236,-151.0,0.00016773,2]
[340629433,1729557048247,-356.721835,0.00016773,2]
[340629434,1729557048257,-150.112233,0.000168,2]
[340629435,1729557048272,-150.112233,0.000168,2]
[340629436,1729557048283,-5493.848,0.00016812,2]
[340629437,1729557048294,-1003.49152922,0.00016849,2]
[340629438,1729557048306,-1314.68954074,0.00016886,2]
[340629439,1729557048316,-150.112233,0.000169,2]
[340629440,1729557048326,-150.112233,0.000169,2]
[340629441,1729557048336,-150.112233,0.000169,2]
[340629442,1729557048347,-150.112233,0.000169,2]
[340629443,1729557048357,-500.0,0.00016973,2]
[340629444,1729557048368,-501.23911136,0.00016973,2]
[340629445,1729557048379,-356.721835,0.0001698,2]